lending/lending_fUSD_20251015
["ID","MTS","AMOUNT","RATE_DAILY","PERIOD"]
[391334357,1760540808878,907.38,0.00030168,120]
[391334358,1760540808957,500.0,0.00030168,120]
[391334359,1760540809050,907.38,0.00030168,120]
[391334360,1760540809127,500.0,0.00030168,120]
[391334361,1760540809248,907.38,0.00030168,120]
[391334362,1760540809321,500.0,0.00030168,120]
[391334363,1760540809407,907.38,0.00030168,120]
[391334364,1760540809520,907.38,0.00030168,120]
[391334365,1760540809603,500.0,0.00030168,120]
[391334366,1760540809698,907.38,0.00030168,120]
[391334367,1760540809794,579.0,0.00030168,120]
[391334368,1760540809897,907.38,0.00030168,120]
[391334369,1760540810001,907.38,0.00030168,120]
[391334370,1760540810093,907.38,0.00030168,120]
[391334371,1760540810220,907.38,0.00030168,120]
[391334372,1760540810321,907.38,0.00030168,120]
[391334373,1760540810450,907.38,0.00030168,120]
[391334374,1760540810522,500.0,0.00030168,120]
[391334375,1760540810596,500.0,0.00030168,120]
[391334376,1760540810707,907.38,0.00030168,120]
[391334377,1760540810786,500.0,0.00030168,120]
[391334378,1760540810879,457.87,0.00030168,120]
[391334379,1760540810960,907.38,0.00030168,120]
[391334380,1760540811057,500.0,0.00030168,120]
[391334381,1760540811454,907.38,0.00030168,120]
[391334382,1760540811536,500.0,0.00030168,120]
[391334383,1760540811640,500.0,0.00030168,120]
[391334384,1760540811716,907.38,0.00030168,120]
[391334385,1760540811869,500.0,0.00030168,120]
[391334386,1760540811952,907.38,0.00030168,120]
[391334387,1760540812060,500.0,0.00030168,120]
[391334388,1760540812218,500.0,0.00030168,120]
[391334389,1760540812349,500.0,0.00030168,120]
[391334390,1760540812497,500.0,0.00030168,120]
[391334391,1760540812609,500.0,0.00030168,120]
[391334392,1760540812729,500.0,0.00030168,120]
[391334393,1760540812803,500.0,0.00030168,120]
[391334394,1760540812919,500.0,0.00030168,120]
[391334395,1760540812993,500.0,0.00030168,120]
[391334396,1760540814514,635.17,0.00030168,120]
[391334397,1760540814657,635.17,0.00030168,120]
[391334398,1760540814726,500.0,0.00030168,120]
[391334399,1760540814818,635.17,0.00030168,120]
[391334400,1760540814894,500.0,0.00030168,120]
[391334401,1760540814994,635.17,0.00030168,120]
[391334402,1760540815065,500.0,0.00030168,120]
[391334403,1760540815159,635.17,0.00030168,120]
[391334404,1760540815234,500.0,0.00030168,120]
[391334405,1760540815326,635.17,0.00030168,120]
[391334406,1760540815399,500.0,0.00030168,120]
[391334407,1760540815506,635.17,0.00030168,120]
[391334408,1760540815613,500.0,0.00030168,120]
[391334409,1760540815696,635.17,0.00030168,120]
[391334410,1760540815795,500.0,0.00030168,120]
[391334411,1760540815876,635.17,0.00030168,120]
[391334412,1760540815955,508.53,0.00030168,120]
[391334413,1760540816079,635.17,0.00030168,120]
[391334414,1760540816157,500.0,0.00030168,120]
[391334415,1760540816264,635.17,0.00030168,120]
[391334416,1760540816346,643.56,0.00030168,120]
[391334417,1760540816423,635.17,0.00030168,120]
[391334418,1760540816501,500.0,0.00030168,120]
[391334419,1760540816604,500.0,0.00030168,120]
[391334420,1760540816694,635.17,0.00030168,120]
[391334421,1760540816794,500.0,0.00030168,120]
[391334422,1760540816877,635.17,0.00030168,120]
[391334423,1760540816978,500.0,0.00030168,120]
[391334424,1760540817051,635.17,0.00030168,120]
[391334425,1760540817157,405.04,0.00030168,120]
[391334426,1760540817254,635.17,0.00030168,120]
[391334427,1760540817369,635.17,0.00030168,120]
[391334428,1760540817490,635.17,0.00030168,120]
[391334429,1760540817593,635.17,0.00030168,120]
[391334430,1760540817695,635.17,0.00030168,120]
[391334431,1760540817795,635.17,0.00030168,120]
[391334432,1760540817887,635.17,0.00030168,120]
[391334433,1760540817972,635.17,0.00030168,120]
[391334434,1760540818078,635.17,0.00030168,120]
[391334435,1760540818317,500.0,0.00030168,120]
[391334436,1760540818431,500.0,0.00030168,120]
[391334437,1760540818518,381.86044692,0.00030168,120]
[391334438,1760540818919,-184.80274016,0.00012864,2]
[391334439,1760540824279,-65.19725984,0.00012864,2]
[391334440,1760540824302,-245.67919199,0.00012957,2]
[391334441,1760540824326,-49.98286399,0.00013317,2]
[391334442,1760540828196,-288.79120476,0.00013317,2]
[391334443,1760540831295,-174.7499396,0.0001291,2]
[391334444,1760540849503,-269.25428962,0.0001291,2]
[391334445,1760540850561,-371.99542722,0.0001291,2]
[391334446,1760540852985,-432.46858161,0.0001291,2]
[391334447,1760540854326,-166.66,0.0001291,2]
[391334448,1760540856043,-258.89834419,0.0001291,2]
[391334449,1760540858602,-300.0,0.0001291,2]
[391334450,1760540861038,-25.97341776,0.0001291,2]
[391334451,1760540861061,-178.56978606,0.00013222,2]
[391334452,1760540863100,-300.0,0.00013222,2]
[391334453,1760540878688,-423.18281254,0.00013222,2]
[391334454,1760540880719,-500.0,0.00013222,2]
[391334455,1760540883861,-268.35715914,0.00013222,2]
[391334456,1760540885433,-303.9168245,0.00013222,2]
[391334457,1760540895635,-25.97341776,0.00013222,2]
[391334458,1760540895659,-175.91624268,0.00013222,2]
[391334459,1760540895682,-207.23879318,0.0001327,2]
[391334460,1760540898642,-294.48663293,0.0001327,2]
[391334461,1760540900588,-56.32006827,0.0001327,2]
[391334462,1760540900611,-146.10638051,0.00013317,2]
[391334463,1760540957318,150.0,0.00027397,120]
[391334464,1760541028132,200.0,0.00027397,120]
[391334478,1760541031988,-660.1,0.00013317,2]
[391334479,1760541032000,-146.99955074,0.00013317,2]
[391334480,1760541032010,-195.75573854,0.00013487,2]
[391334481,1760541032022,-358.04823013,0.00013487,2]
[391334482,1760541032107,-261.52,0.00013487,2]
[391334483,1760541032208,-384.67603133,0.00013487,2]
[391334485,1760541032220,-300.0,0.00013487,2]
[391334487,1760541032230,-150.0,0.00013488,2]
[391334489,1760541032240,-150.0,0.00013488,2]
[391334491,1760541032250,-150.0,0.00013488,2]
[391334494,1760541032260,-150.0,0.00013488,2]
[391334496,1760541032270,-150.0,0.00013488,2]
[391334498,1760541032280,-150.0,0.00013488,2]
[391334500,1760541032291,-150.0,0.00013488,2]
[391334502,1760541032301,-150.0,0.00013488,2]
[391334503,1760541032310,-150.0,0.00013488,2]
[391334505,1760541032320,-150.0,0.00013488,2]
[391334506,1760541032330,-150.0,0.00013488,2]
[391334507,1760541032340,-150.0,0.00013654,2]
[391334508,1760541032351,-1291.98,0.00013677,2]
[391334509,1760541032361,-966.70240673,0.00013746,2]
[391334511,1760541032371,-151.0,0.0001375,2]
[391334513,1760541032380,-151.0,0.0001375,2]
[391334515,1760541032390,-151.0,0.0001375,2]
[391334517,1760541032399,-151.0,0.0001375,2]
[391334520,1760541032409,-151.0,0.0001375,2]
[391334522,1760541032419,-151.0,0.0001375,2]
[391334524,1760541032428,-208.4268758,0.0001375,2]
[391334525,1760541032437,-150.0,0.00013757,2]
[391334526,1760541032446,-4183.09,0.00013758,2]
[391334527,1760541032456,-500.0,0.00013758,2]
[391334528,1760541032467,-500.0,0.00013758,2]
[391334530,1760541032477,-500.0,0.00013758,2]
[391334532,1760541032486,-334.5966844,0.00013758,2]
[391334534,1760541032496,-1000.0,0.00013763,2]
[391334536,1760541032506,-200.0,0.00013765,2]
[391334538,1760541032516,-250.0,0.00013769,7]
[391334540,1760541032525,-3306.1,0.00013776,2]
[391334542,1760541032535,-150.0,0.00013787,2]
[391334544,1760541032545,-1600.0,0.00013808,2]
[391334546,1760541032555,-150.0,0.00013821,2]
[391334547,1760541032564,-150.0,0.00013862,2]
[391334548,1760541032574,-150.0,0.00013862,2]
[391334549,1760541032585,-150.0,0.00013862,2]
[391334550,1760541032596,-150.0,0.00013862,2]
[391334551,1760541032606,-150.0,0.00013862,2]
[391334552,1760541032616,-150.0,0.00013987,2]
[391334553,1760541032625,-150.0,0.00013987,2]
[391334554,1760541032635,-150.0,0.00014006,2]
[391334555,1760541032645,-150.0,0.00014087,2]
[391334556,1760541032655,-300.0,0.0001415,2]
[391334557,1760541032664,-300.0,0.0001415,2]
[391334558,1760541032674,-300.0,0.0001415,2]
[391334559,1760541032686,-300.0,0.0001415,2]
[391334560,1760541032698,-398.79626449,0.0001415,2]
[391334561,1760541032708,-150.38637213,0.0001415,4]
[391334562,1760541032718,-300.0,0.0001415,2]
[391334563,1760541032729,-164.92630483,0.0001415,2]
[391334564,1760541032738,-2500.0,0.0001415,2]
[391334565,1760541032748,-16.32783039,0.0001415,2]
[391334566,1760541032760,-2483.67216961,0.0001415,2]
[391334567,1760541032770,-1781.81819728,0.0001415,2]
[391334568,1760541032779,-195.0,0.0001415,2]
[391334569,1760541032789,-2000.0,0.0001415,2]
[391334570,1760541032799,-150.0,0.00014154,2]
[391334571,1760541032809,-150.0,0.00014237,2]
[391334572,1760541032818,-150.0,0.00014237,2]
[391334573,1760541032828,-150.0,0.00014237,2]
[391334574,1760541032837,-150.0,0.00014237,2]
[391334575,1760541032848,-150.0,0.00014237,2]
[391334576,1760541032858,-322.6107,0.00014246,2]
[391334577,1760541032867,-621.84813642,0.00014246,2]
[391334578,1760541032877,-151.0,0.00014246,2]
[391334579,1760541032886,-277.35679052,0.00014246,2]
[391334580,1760541032895,-241.0,0.00014299,2]
[391334581,1760541032905,-570.1288,0.00014308,2]
[391334582,1760541032915,-1000.0,0.00014308,2]
[391334583,1760541032924,-150.0,0.0001432,2]
[391334584,1760541032934,-500.0,0.00014339,2]
[391334585,1760541032944,-168.0,0.00014386,2]
[391334586,1760541032953,-150.0,0.00014387,2]
[391334587,1760541032962,-168.0,0.00014435,2]
[391334588,1760541032972,-150.0,0.00014487,2]
[391334589,1760541032982,-150.0,0.00014487,2]
[391334590,1760541032992,-168.0,0.00014527,2]
[391334591,1760541033001,-195.0,0.00014545,2]
[391334592,1760541033010,-2000.0,0.00014545,2]
[391334593,1760541033020,-150.0,0.00014612,2]
[391334594,1760541033030,-150.0,0.00014612,2]
[391334595,1760541033040,-150.0,0.00014612,2]
[391334596,1760541033050,-150.0,0.00014612,2]
[391334597,1760541033060,-150.0,0.00014612,2]
[391334598,1760541033070,-500.0,0.00014613,2]
[391334599,1760541033079,-168.0,0.00014622,2]
[391334600,1760541033089,-889.80654812,0.00014643,2]
[391334601,1760541033100,-895.96278924,0.00014649,2]
[391334602,1760541033110,-150.0,0.00014653,2]
[391334603,1760541033119,-168.0,0.00014682,2]
[391334604,1760541033131,-150.0,0.00014687,2]
[391334605,1760541033140,-1666.28694151,0.00014699,2]
[391334606,1760541033150,-420.0,0.00014783,2]
[391334607,1760541033159,-8572.2886,0.000148,2]
[391334608,1760541033170,-62837.0,0.000148,2]
[391334609,1760541033180,-286.78450011,0.000148,2]
[391334610,1760541033189,-1000.0,0.000148,2]
[391334611,1760541033202,-160.83643689,0.00014812,2]
[391334612,1760541033213,-150.0,0.0001482,2]
[391334613,1760541033222,-168.0,0.00014821,2]
[391334614,1760541033232,-4014.0,0.0001483,2]
[391334615,1760541033241,-1583.0,0.0001483,2]
[391334616,1760541033250,-1182.0,0.0001483,2]
[391334617,1760541033259,-1680.0,0.00014835,2]
[391334618,1760541033269,-160.83643689,0.00014859,2]
[391334619,1760541033278,-255.0,0.00014872,2]
[391334620,1760541033288,-500.0,0.00014887,2]
[391334621,1760541033299,-160.83643689,0.00014889,2]
[391334622,1760541033308,-2436.21900849,0.00014899,2]
[391334623,1760541033317,-2500.0,0.00014899,2]
[391334624,1760541033326,-2436.21900849,0.000149,2]
[391334625,1760541033336,-500.0,0.000149,2]
[391334626,1760541033346,-500.0,0.000149,2]
[391334627,1760541033356,-500.0,0.000149,2]
[391334628,1760541033366,-259.76287422,0.000149,2]
[391334629,1760541033375,-5000.0,0.000149,2]
[391334630,1760541033385,-170.28734741,0.000149,2]
[391334631,1760541033394,-163.52572472,0.000149,2]
[391334632,1760541033407,-500.0,0.00014973,2]
[391334633,1760541033416,-500.0,0.00014973,2]
[391334634,1760541033425,-500.0,0.00014973,2]
[391334635,1760541033435,-500.0,0.00014973,2]
[391334636,1760541033444,-414.79416885,0.00014973,2]
[391334637,1760541033454,-500.0,0.00014973,2]
[391334638,1760541033463,-500.0,0.00014973,2]
[391334639,1760541033472,-403.00714373,0.00014973,2]
[391334776,1760541040189,-1.6e-07,0.0001483,2]
[391334777,1760541040227,-2544.99999984,0.0001483,2]
[391334778,1760541040236,-96.99285627,0.00014973,2]
[391334779,1760541040245,-500.0,0.00014973,2]
[391334780,1760541040255,-500.0,0.00014973,2]
[391334781,1760541040265,-500.0,0.00014973,2]
[391334782,1760541040275,-199.80619992,0.00014986,2]
[391334783,1760541040285,-235.38825888,0.00014986,2]
[391334784,1760541040296,-250.3876002,0.00014986,2]
[391334785,1760541040307,-208.273101,0.00014986,2]
[391334786,1760541040316,-152.0477047,0.00014986,2]
[391334787,1760541040326,-199.17850062,0.00014986,2]
[391334788,1760541040335,-150.0,0.00014986,2]
[391334789,1760541040345,-106.95766096,0.00014986,2]
[391334790,1760541040359,-174.78308403,0.00014986,2]
[391334791,1760541040370,-150.0,0.00014986,2]
[391334792,1760541040380,-150.0,0.00014986,2]
[391334793,1760541040390,-218.24396007,0.00014986,2]
[391334794,1760541040400,-191.39933912,0.0001499,2]
[391334795,1760541040410,-151.0,0.00014997,2]
[391334796,1760541040420,-221.93853348,0.00014998,2]
[391334797,1760541040432,-271.42282622,0.00014998,2]
[391334798,1760541040488,-255.6386403,0.00014998,2]
[391334799,1760541040498,-500.0,0.00014998,2]
[391334800,1760541040507,-492.26618682,0.00014998,2]
[391334801,1760541040516,-278.70098089,0.00014998,2]
[391334802,1760541040525,-500.0,0.00014998,2]
[391334803,1760541040535,-500.0,0.00014998,2]
[391334804,1760541040545,-500.0,0.00014998,2]
[391334805,1760541040554,-500.0,0.00014998,2]
[391334806,1760541040563,-500.0,0.00014998,2]
[391334807,1760541040572,-395.26124193,0.00014999,2]
[391334808,1760541040582,-349.48451127,0.00014999,2]
[391334809,1760541040591,-4382.9519252,0.00014999,2]
[391334810,1760541040600,-3126.1581747,0.00014999,2]
[391334811,1760541040610,-9971.53833889,0.00014999,2]
[391334812,1760541040663,-556.8259996,0.00014999,2]
[391334824,1760541043174,-902.0,0.0001483,2]
[391334825,1760541043183,-10531.28620001,0.00014999,2]
[391335014,1760541046990,-12615.47591674,0.00014999,2]
[391335015,1760541047006,-2220.75148885,0.00014999,2]
[391335016,1760541047025,-1004.10000001,0.00014999,2]
[391335017,1760541047036,-102033.5883238,0.00014999,2]
[391335018,1760541047046,-1573.0,0.00015,2]
[391335019,1760541047056,-96433.4116756,0.00015,2]
[391335020,1760541047067,-1226.65,0.00015,2]
[391335021,1760541047086,-2256.3,0.00015,2]
[391335022,1760541143803,500.0,8.219e-05,2]
[391335023,1760541144317,500.0,8.493e-05,2]
[391335024,1760541144826,500.0,8.767e-05,2]
[391335025,1760541145380,500.0,9.041e-05,2]
[391335026,1760541145908,500.0,9.315e-05,2]
[391335027,1760541146742,500.0,9.589e-05,2]
[391335028,1760541146904,500.0,9.863e-05,2]
[391335029,1760541147425,500.0,0.00010137,2]
[391335030,1760541147948,500.0,0.00010411,2]
[391335031,1760541148454,500.0,0.00010685,2]
[391335032,1760541148975,500.0,0.00010959,2]
[391335033,1760541151215,500.0,0.00011233,2]
[391335034,1760541151391,500.0,0.00011507,2]
[391335035,1760541151532,500.0,0.00011781,2]
[391335036,1760541151650,500.0,0.00012055,2]
[391335037,1760541151841,500.0,0.00012329,2]
[391335038,1760541152304,500.0,0.00012603,2]
[391335039,1760541233127,-228.97972176,0.00012877,2]
[391335040,1760541235570,-271.02027824,0.00012877,2]
[391335041,1760541235593,-322.58306415,0.00013151,2]
[391335044,1760541551404,2000.0,0.00026139,120]
[391335045,1760541552257,929.433,0.00026143,120]
[391335047,1760541929950,8907.00338577,0.00021879,120]
[391335048,1760541964641,159.16190694,8e-05,2]
[391335049,1760541966271,250.0,8.8e-05,2]
[391335050,1760541967196,365.23193689,0.00011,2]
[391335055,1760542049184,-318.82659145,0.0001305,2]
[391335057,1760542050234,-255.91598012,0.0001305,2]
[391335058,1760542052570,-199.18036275,0.0001305,2]
[391335078,1760542120460,48834.01469172,0.00012535,2]
[391335096,1760542232207,-181.70482992,0.0001305,2]
[391335097,1760542232216,-2499.58,0.00013316,2]
[391335098,1760542232225,-879.6,0.00013382,2]
[391335099,1760542232235,-264.29,0.00013449,2]
[391335100,1760542232245,-1078.22,0.0001346,2]
[391335101,1760542232255,-150.0,0.0001346,2]
[391335102,1760542232264,-3929.1115039,0.00013474,2]
[391335103,1760542232276,-24455.2384961,0.00013474,2]
[391335104,1760542232286,-273.0,0.00013505,2]
[391335105,1760542232296,-273.0,0.00013524,2]
[391335106,1760542232306,-273.0,0.00013533,2]
[391335107,1760542232316,-273.0,0.00013584,2]
[391335108,1760542232327,-311.05,0.00013619,2]
[391335109,1760542232336,-273.0,0.00013621,2]
[391335110,1760542232346,-168.0,0.00013629,2]
[391335111,1760542232356,-993.26,0.0001364,2]
[391335112,1760542232366,-594.93,0.00013699,2]
[391335113,1760542232375,-166.66,0.00013699,2]
[391335114,1760542232385,-666.0,0.00013706,3]
[391335115,1760542232394,-150.0,0.00013747,2]
[391335116,1760542232404,-200.0,0.00013775,2]
[391335117,1760542232414,-200.0,0.00013792,2]
[391335118,1760542232424,-150.0,0.00013799,2]
[391335119,1760542232434,-45625.54820352,0.000138,2]
[391335121,1760542232445,-166.66,0.00013836,2]
[391335123,1760542232462,-299.0,0.00013865,2]
[391335125,1760542232475,-8191.173738,0.00013898,2]
[391335127,1760542232485,-299.0,0.00013941,2]
[391335129,1760542232495,-500.0,0.00013941,2]
[391335130,1760542232505,-166.66,0.00013973,2]
[391335131,1760542232515,-322.6107,0.00014037,2]
[391335132,1760542232525,-277.35679052,0.00014037,2]
[391335134,1760542232534,-166.66,0.0001411,2]
[391335136,1760542232543,-500.0,0.00014215,2]
[391335138,1760542232552,-166.66,0.00014247,2]
[391335141,1760542232562,-261.0,0.00014269,2]
[391335143,1760542232573,-4836.0,0.00014284,2]
[391335145,1760542232582,-261.0,0.00014314,2]
[391335147,1760542232591,-773.92293432,0.00014355,2]
[391335149,1760542232600,-250.0,0.00014355,2]
[391335150,1760542232609,-300.0,0.00014355,2]
[391335151,1760542232618,-300.0,0.00014355,2]
[391335152,1760542232628,-174.7499396,0.00014355,2]
[391335153,1760542232638,-166.66,0.00014384,2]
[391335154,1760542232647,-261.0,0.0001439,2]
[391335155,1760542232657,-1388.8040791,0.00014434,2]
[391335156,1760542232666,-500.0,0.00014489,2]
[391335157,1760542232675,-1000.0,0.000146,2]
[391335158,1760542232684,-833.26112973,0.00014604,2]
[391335159,1760542232694,-217.04472139,0.00014693,2]
[391335160,1760542232708,-1566.8416698,0.00014699,2]
[391335161,1760542232717,-1000.0,0.000147,2]
[391335162,1760542232727,-261.0,0.0001473,2]
[391335163,1760542232737,-500.0,0.00014763,2]
[391335164,1760542232746,-1192.16056106,0.00014767,2]
[391335165,1760542232756,-261.0,0.00014776,2]
[391335166,1760542232766,-6584.18416444,0.0001479,2]
[391335167,1760542232775,-2000.0,0.00014794,2]
[391335168,1760542232785,-822.58108797,0.00014794,2]
[391335169,1760542232794,-165.1630495,0.00014795,2]
[391335170,1760542232804,-6584.18416439,0.00014802,2]
[391335171,1760542232813,-2500.0,0.00014806,2]
[391335172,1760542232824,-2500.0,0.00014806,2]
[391335173,1760542232833,-6584.18416439,0.00014814,2]
[391335174,1760542232842,-6584.18416439,0.00014827,2]
[391335175,1760542232851,-6584.18416439,0.00014839,2]
[391335176,1760542232860,-261.0,0.00014844,2]
[391335177,1760542232869,-6584.18416439,0.00014851,2]
[391335178,1760542232883,-6584.18416439,0.00014863,2]
[391335179,1760542232892,-168.73258062,0.00014873,2]
[391335180,1760542232903,-6584.18416439,0.00014876,2]
[391335181,1760542232912,-6584.18416439,0.00014888,2]
[391335182,1760542232922,-500.0,0.00014889,2]
[391335183,1760542232932,-500.0,0.00014889,2]
[391335184,1760542232942,-500.0,0.00014889,2]
[391335185,1760542232952,-500.0,0.00014889,2]
[391335186,1760542232961,-312.79599828,0.00014889,2]
[391335187,1760542232971,-500.0,0.00014889,2]
[391335188,1760542232983,-500.0,0.00014889,2]
[391335189,1760542232992,-500.0,0.00014889,2]
[391335190,1760542233002,-500.0,0.00014889,2]
[391335191,1760542233012,-500.0,0.00014889,2]
[391335192,1760542233022,-500.0,0.00014889,2]
[391335193,1760542233031,-500.0,0.00014889,2]
[391335194,1760542233041,-500.0,0.00014889,2]
[391335195,1760542233051,-500.0,0.00014889,2]
[391335196,1760542233061,-500.0,0.00014889,2]
[391335197,1760542233072,-500.0,0.00014889,2]
[391335198,1760542233085,-500.0,0.00014889,2]
[391335199,1760542233095,-500.0,0.00014889,2]
[391335200,1760542233105,-500.0,0.00014889,2]
[391335201,1760542233115,-500.0,0.00014889,2]
[391335202,1760542233124,-500.0,0.00014889,2]
[391335203,1760542233136,-500.0,0.00014889,2]
[391335204,1760542233146,-500.0,0.00014889,2]
[391335205,1760542233156,-57437.74694976,0.0001489,2]
[391335206,1760542233170,-33053.25305024,0.0001489,2]
[391335207,1760542233181,-9706.72825256,0.0001489,2]
[391335208,1760542233191,-6380.03616166,0.00014891,2]
[391335209,1760542233219,-3326.69209085,0.00014891,2]
[391335210,1760542233229,-1209.19362196,0.00014892,2]
[391335211,1760542233244,-487.34837595,0.00014892,2]
[391335212,1760542233256,-3422.4,0.00014892,2]
[391335213,1760542233337,-4587.7862546,0.00014892,2]
[391335214,1760542233347,-9706.72825251,0.00014893,2]
[391335215,1760542233357,-9706.72825251,0.00014894,2]
[391335216,1760542233367,-9706.72825251,0.00014896,2]
[391335217,1760542233376,-9706.72825251,0.00014897,2]
[391335218,1760542233386,-1000.0,0.00014897,2]
[391335219,1760542233397,-9706.72825251,0.00014898,2]
[391335220,1760542233407,-1381.85448286,0.00014899,2]
[391335228,1760542238600,-500.0,0.00014027,2]
[391335229,1760542238611,-186.0,0.00014575,2]
[391335230,1760542238620,-8324.87376965,0.00014899,2]
[391335231,1760542238630,-13415.3622,0.00014899,2]
[391335232,1760542238640,-3796.659,0.00014899,2]
[391335233,1760542238650,-218.829,0.00014899,2]
[391335234,1760542238660,-169.20969675,0.000149,2]
[391335235,1760542238669,-292.4395401,0.000149,2]
[391335236,1760542238679,-839.21410694,0.000149,2]
[391335237,1760542238688,-5000.0,0.000149,2]
[391335238,1760542238698,-9706.72825251,0.000149,2]
[391335239,1760542238708,-1000.0,0.000149,2]
[391335240,1760542238717,-6584.18416439,0.000149,2]
[391335241,1760542238727,-1000.0,0.000149,2]
[391335242,1760542238738,-1000.0,0.000149,2]
[391335243,1760542238747,-5800.0,0.000149,2]
[391335244,1760542238757,-1000.0,0.000149,2]
[391335245,1760542238766,-1000.0,0.000149,2]
[391335246,1760542238776,-259.50190121,0.000149,2]
[391335247,1760542238786,-255.0,0.00014917,2]
[391335248,1760542238796,-500.0,0.00014973,2]
[391335249,1760542238805,-500.0,0.00014973,2]
[391335250,1760542238815,-500.0,0.00014973,2]
[391335251,1760542238825,-500.0,0.00014973,2]
[391335252,1760542238835,-500.0,0.00014973,2]
[391335253,1760542238845,-500.0,0.00014973,2]
[391335254,1760542238854,-500.0,0.00014973,2]
[391335255,1760542238864,-500.0,0.00014973,2]
[391335256,1760542238874,-500.0,0.00014973,2]
[391335257,1760542238884,-500.0,0.00014973,2]
[391335258,1760542238894,-500.0,0.00014973,2]
[391335259,1760542238903,-151.0,0.00014987,2]
[391335260,1760542238913,-117176.52159881,0.00014989,2]
[391335261,1760542238951,-345.87173433,0.00014989,2]
[391335262,1760542238963,-1445.58767714,0.00014989,2]
[391335263,1760542238975,-1140.5,0.00014989,2]
[391335264,1760542239017,-1753.42997833,0.00014989,2]
[391335270,1760542240142,-265.96,0.00014989,2]
[391335271,1760542240248,-319.2421796,0.00014989,2]
[391335272,1760542240306,-12259.9244816,0.00014989,2]
[391335273,1760542240318,-7200.77354006,0.00014989,2]
[391335274,1760542240333,-8062.99977926,0.00014989,2]
[391335275,1760542240344,-3946.00794361,0.00014989,2]
[391335276,1760542240356,-15874.34511371,0.00014989,2]
[391335277,1760542240388,-705477.5711978,0.00014989,2]
[391335278,1760542240402,-500.0,0.00014989,2]
[391335279,1760542240412,-500.0,0.00014989,2]
[391335280,1760542240421,-306.13762449,0.00014989,2]
[391335281,1760542240430,-186.46650923,0.00014989,2]
[391335282,1760542240439,-173.656292,0.00014989,2]
[391335283,1760542240448,-531.82423474,0.00014989,2]
[391335284,1760542240462,-303.70278161,0.00014989,2]
[391335285,1760542240471,-368.451362,0.00014989,2]
[391335286,1760542240480,-500.0,0.00014989,2]
[391335287,1760542240489,-500.0,0.00014989,2]
[391335288,1760542240499,-9659.48249612,0.0001499,2]
[391335289,1760542240508,-462211.87045605,0.0001499,2]
[391335290,1760542240518,-109070.50954083,0.0001499,4]
[391335291,1760542240529,-191.39933913,0.0001499,2]
[391335292,1760542240540,-31834.0114846,0.00014997,2]
[391335293,1760542240549,-5787.3248855,0.00014997,2]
[391335294,1760542240558,-151.0,0.00014997,2]
[391335295,1760542240568,-1590.17,0.00014998,2]
[391335296,1760542240579,-1337.414,0.00014998,2]
[391335297,1760542240588,-605.873,0.00014998,2]
[391335299,1760542240598,-572.819,0.00014998,2]
[391335301,1760542240607,-819.0,0.00014998,2]
[391335303,1760542240616,-902.0,0.00014998,2]
[391335306,1760542240626,-1182.0,0.00014998,2]
[391335307,1760542240635,-2545.0,0.00014998,2]